bitfinex/quotes_BTCUSD_20220103
["timestamp","ask_amount","ask_price","bid_price","bid_amount"]
[1641228026811,1.65988,46405.0,46404.0,0.0082102]
[1641228027051,1.80308,46405.0,46404.0,0.0082102]
[1641228027649,1.80308,46405.0,46404.0,0.00790469]
[1641228027846,1.80308,46405.0,46401.0,0.00030551]
[1641228027847,0.10779,46404.0,46401.0,0.00030551]
[1641228028048,0.5008692,46403.0,46401.0,0.00030551]
[1641228028949,0.32108739,46402.0,46401.0,0.00030551]
[1641228029149,0.39988,46402.0,46401.0,0.00030551]
[1641228029747,0.34988,46402.0,46401.0,0.00030551]
[1641228030351,0.0538942,46403.0,46400.0,0.053891]
[1641228031402,0.0538942,46403.0,46400.0,0.107773]
[1641228032406,0.00119644,46402.0,46401.0,0.00055714]
[1641228035948,0.05008021,46404.0,46401.0,0.00055714]
[1641228036150,0.05008021,46404.0,46401.0,0.05444414]
[1641228037049,0.31464694,46403.0,46401.0,0.05444414]
[1641228037252,0.36853494,46403.0,46401.0,0.05444414]
[1641228037453,1.04977712,46402.0,46401.0,0.05444414]
[1641228037959,1.04977712,46402.0,46401.0,0.00055714]
[1641228039010,1.99584712,46402.0,46401.0,0.00055714]
[1641228040009,1.30584712,46402.0,46401.0,0.00055714]
[1641228041413,1.40584712,46402.0,46401.0,0.00055714]
[1641228042045,2.16567155,46402.0,46401.0,0.00055714]
[1641228042249,1.30567155,46402.0,46401.0,0.00055714]
[1641228042648,1.85876849,46402.0,46401.0,0.00055714]
[1641228042845,2.37876849,46402.0,46401.0,0.00055714]
[1641228043548,1.95876849,46402.0,46401.0,0.00055714]
[1641228043949,2.28876849,46402.0,46401.0,0.00055714]
[1641228044147,1.95876849,46402.0,46401.0,0.00055714]
[1641228047804,2.43876849,46402.0,46401.0,0.00055714]
[1641228048204,2.53876849,46402.0,46401.0,0.00055714]
[1641228048404,1.95876849,46402.0,46401.0,0.00055714]
[1641228048609,1.63904694,46402.0,46401.0,0.00055714]
[1641228048803,2.25904694,46402.0,46401.0,0.00055714]
[1641228049458,1.63904694,46402.0,46401.0,0.00055714]
[1641228049860,2.04904694,46402.0,46401.0,0.00055714]
[1641228050158,1.01044286,46401.0,46392.0,0.116447]
[1641228050357,0.39308,46400.0,46392.0,0.116447]
[1641228050559,0.05621974,46397.0,46392.0,0.116447]
[1641228050760,0.34988,46396.0,46392.0,0.116447]
[1641228050959,0.05621974,46397.0,46392.0,0.116447]
[1641228051164,0.6085477,46394.0,46392.0,0.116447]
[1641228051360,0.34988,46393.0,46392.0,0.116447]
[1641228051562,0.9584277,46393.0,46392.0,0.062546]
[1641228052963,0.6085477,46393.0,46392.0,0.29478064]
[1641228053230,0.85196678,46397.0,46392.0,0.29478064]
[1641228053231,0.6085477,46397.0,46392.0,0.29478064]
[1641228053416,0.6085477,46397.0,46394.0,0.107786]
[1641228053620,0.66243923,46397.0,46394.0,0.053893]
[1641228054021,0.05,46397.0,46394.0,0.053893]
[1641228054418,0.6585477,46398.0,46395.0,0.053893]
[1641228054617,0.6585477,46398.0,46395.0,0.05412599]
[1641228054819,0.6085477,46399.0,46395.0,0.00046598]
[1641228055017,2.15755759,46399.0,46396.0,0.053892]
[1641228055217,0.34988,46398.0,46396.0,0.053892]
[1641228055621,0.4037701,46398.0,46396.0,0.053892]
[1641228056522,0.4037701,46398.0,46396.0,0.107784]
[1641228057564,0.4037701,46398.0,46397.0,1.64242462]
[1641228057565,0.6085477,46398.0,46397.0,1.64242462]
[1641228057767,0.6085477,46398.0,46397.0,1.286078]
[1641228057965,0.6085477,46398.0,46397.0,0.096078]
[1641228058266,0.60899056,46401.0,46398.0,0.107758]
[1641228058565,0.60899056,46401.0,46399.0,0.052872]
[1641228058765,0.60899056,46401.0,46399.0,0.102872]
[1641228058969,0.00044286,46401.0,46399.0,0.102872]
[1641228059167,0.00044286,46401.0,46400.0,0.00123698]
[1641228059364,0.00044286,46401.0,46400.0,0.78410698]
[1641228059566,0.00044286,46401.0,46400.0,0.05410698]
[1641228059764,0.00044286,46401.0,46400.0,0.46242898]
[1641228060569,0.00044286,46401.0,46400.0,0.79739867]
[1641228061021,0.00044286,46401.0,46400.0,0.84186542]
[1641228061217,0.00044286,46401.0,46400.0,0.94186542]
[1641228061616,0.00044286,46401.0,46400.0,1.81689573]
[1641228062216,0.00790642,46407.0,46404.0,0.053869]
[1641228062415,0.00790642,46407.0,46406.0,0.30487914]
[1641228062613,0.00790642,46407.0,46406.0,0.40049314]
[1641228063015,0.00790642,46407.0,46406.0,0.45049314]
[1641228063814,0.00790642,46407.0,46406.0,0.50436214]
[1641228064218,0.0001,46410.0,46406.0,0.50436214]
[1641228064470,0.0001,46410.0,46408.0,0.096617]
[1641228065559,0.0001,46410.0,46408.0,0.09693699]
[1641228065760,0.0001,46410.0,46408.0,0.09725698]
[1641228067663,0.0001,46410.0,46408.0,0.40363575]
[1641228068306,0.0001,46410.0,46408.0,0.09725698]
[1641228069105,0.0001,46410.0,46408.0,0.00063998]
[1641228069504,0.00119624,46409.0,46408.0,0.00063998]
[1641228070206,0.00119624,46409.0,46408.0,0.48440556]
[1641228070605,0.00119624,46409.0,46408.0,0.15085073]
[1641228072056,0.00119624,46409.0,46408.0,0.05304998]
[1641228072758,0.00119624,46409.0,46408.0,0.00063998]
[1641228073859,0.00119624,46409.0,46408.0,0.05304898]
[1641228075060,0.00119624,46409.0,46408.0,0.00063998]
[1641228075720,0.00119624,46409.0,46408.0,1.59780738]
[1641228075910,0.00119624,46409.0,46408.0,1.24146076]
[1641228076111,0.00119624,46409.0,46408.0,1.34146076]
[1641228076314,0.00119624,46409.0,46408.0,4.32830499]
[1641228076512,0.6170807,46417.0,46409.0,1.668364]
[1641228076715,0.6170807,46417.0,46412.0,0.107714]
[1641228076911,0.008533,46417.0,46416.0,0.00129708]
[1641228077111,0.008533,46417.0,46416.0,0.05386]
[1641228077711,0.008533,46417.0,46416.0,0.102206]
[1641228078613,0.008533,46417.0,46416.0,0.05386]
[1641228079015,0.008533,46417.0,46415.0,5.05514034]
[1641228079213,0.008533,46417.0,46416.0,0.048346]
[1641228081055,0.00646296,46418.0,46416.0,0.048346]
[1641228081259,0.26601683,46433.0,46415.0,0.69286134]
[1641228081465,0.00056065,46423.0,46417.0,0.107722]
[1641228081659,0.00056065,46423.0,46415.0,0.58514134]
[1641228081660,0.162147,46423.0,46416.0,0.10773]
[1641228081859,0.053867,46421.0,46415.0,0.53]
[1641228082357,0.00675692,46421.0,46416.0,0.053871]
[1641228082759,0.05387,46420.0,46416.0,0.053871]
[1641228082959,0.15,46417.0,46416.0,0.053871]
[1641228083419,0.33970035,46417.0,46416.0,0.053871]
[1641228083619,0.33970035,46417.0,46413.0,0.10774]
[1641228083620,0.1932,46417.0,46413.0,0.10774]
[1641228083818,0.09861055,46417.0,46413.0,0.10774]
[1641228084018,0.09861055,46417.0,46412.0,0.00790058]
[1641228084419,0.35671985,46416.0,46412.0,0.00790058]
[1641228084619,0.0432,46415.0,46412.0,0.00790058]
[1641228084819,0.09487843,46414.0,46412.0,0.00790058]
[1641228085018,0.90602207,46413.0,46412.0,0.00790058]
[1641228085222,0.95602207,46413.0,46412.0,0.00790058]
[1641228085621,1.31327219,46413.0,46412.0,0.00790058]
[1641228086024,0.80327219,46413.0,46412.0,0.00790058]
[1641228086225,0.80327219,46413.0,46405.0,0.42726579]
[1641228086526,0.053878,46412.0,46406.0,0.107756]
[1641228087374,0.05387834,46409.0,46407.0,0.00052194]
[1641228087572,0.10892182,46409.0,46407.0,0.00052194]
[1641228088173,0.10892182,46409.0,46408.0,0.053878]
[1641228088373,0.05504348,46409.0,46408.0,0.053878]
[1641228092716,0.05504348,46409.0,46407.0,0.05439994]
[1641228092920,0.05504348,46409.0,46407.0,0.00052194]
[1641228093716,0.32231208,46408.0,46407.0,0.00052194]
[1641228094315,0.05504348,46409.0,46407.0,0.00052194]
[1641228094762,0.1089218,46409.0,46407.0,0.05440094]
[1641228095363,0.10387832,46409.0,46407.0,0.10827794]
[1641228096362,0.05387832,46409.0,46408.0,0.048365]
[1641228096962,0.05386776,46411.0,46408.0,0.102233]
[1641228097166,0.05386776,46411.0,46409.0,0.0977914]
[1641228097364,0.05386776,46411.0,46409.0,0.50948201]
[1641228097765,0.05386776,46411.0,46410.0,0.048361]
[1641228098230,0.05386816,46414.0,46412.0,0.107737]
[1641228098615,0.10773632,46418.0,46412.0,0.157737]
[1641228098817,0.10773632,46418.0,46412.0,0.161603]
[1641228099016,0.15773632,46418.0,46413.0,0.05]
[1641228099218,0.15773632,46418.0,46415.0,0.053867]
[1641228099417,0.15773632,46418.0,46415.0,0.107735]
[1641228099822,0.15773632,46418.0,46417.0,0.0844434]
[1641228100220,0.05,46418.0,46417.0,0.0844434]
[1641228100419,0.0538672,46419.0,46417.0,0.0844434]
[1641228100619,0.1038672,46419.0,46417.0,0.0844434]
[1641228101020,0.1038672,46419.0,46418.0,0.24789692]
[1641228101522,0.0538672,46419.0,46418.0,0.24789692]
[1641228101724,0.84208479,46423.0,46418.0,0.66120625]
[1641228101984,0.84208479,46423.0,46422.0,0.00123996]
[1641228102183,0.84208479,46423.0,46422.0,0.73277096]
[1641228102381,0.41130579,46423.0,46422.0,0.14277096]
[1641228102781,0.0999,46428.0,46427.0,0.38647396]
[1641228102982,0.0999,46428.0,46427.0,0.67321254]
[1641228103181,0.0999,46428.0,46427.0,0.74654579]
[1641228103981,0.0999,46428.0,46427.0,1.11111551]
[1641228104182,0.0999,46428.0,46427.0,0.36007183]
[1641228104383,0.0999,46428.0,46427.0,0.71386458]
[1641228104586,0.0999,46428.0,46427.0,0.86386458]
[1641228105084,0.0999,46428.0,46427.0,0.71386458]
[1641228105283,0.0999,46428.0,46427.0,0.75706458]
[1641228105486,0.0999,46428.0,46427.0,1.32781135]
[1641228105729,0.0999,46428.0,46427.0,1.17781135]
[1641228105922,0.0999,46428.0,46427.0,1.27781135]
[1641228106119,0.00791162,46439.0,46428.0,1.62]
[1641228106321,0.00791162,46439.0,46438.0,0.00125575]
[1641228106520,0.00791162,46439.0,46438.0,0.31145183]
[1641228106720,0.10781162,46439.0,46438.0,0.31145183]
[1641228107022,0.15781162,46439.0,46438.0,0.14917928]
[1641228107221,0.15781162,46439.0,46438.0,0.10088628]
[1641228107818,0.15781162,46439.0,46438.0,0.14917928]
[1641228109019,0.15781162,46439.0,46438.0,0.14941577]
[1641228109223,0.15781162,46439.0,46438.0,0.14965226]
[1641228110268,0.15781162,46439.0,46438.0,0.10135926]
[1641228112369,0.15781162,46439.0,46438.0,0.00172873]
[1641228112572,0.15781162,46439.0,46438.0,0.00047298]
[1641228113412,0.15781162,46439.0,46438.0,0.07804442]
[1641228116718,0.10781162,46439.0,46438.0,0.07804442]
[1641228117968,0.15781162,46439.0,46438.0,0.07804442]
[1641228119172,0.15781162,46439.0,46438.0,0.00047298]
[1641228120373,0.10781162,46439.0,46438.0,0.00047298]
[1641228120575,0.00791162,46439.0,46438.0,0.00047298]
[1641228120824,0.00791162,46439.0,46438.0,0.04997834]
[1641228121025,0.00791162,46439.0,46438.0,0.80997834]
[1641228121224,0.00791162,46439.0,46438.0,0.04997834]
[1641228121427,0.00791162,46439.0,46438.0,0.51179026]
[1641228121630,0.00791162,46439.0,46438.0,1.38717834]
[1641228122027,0.0001,46440.0,46439.0,2.764]
[1641228122226,0.0001,46440.0,46439.0,2.85672469]
[1641228122425,0.00050463,46441.0,46440.0,1.39]
[1641228122625,0.00050463,46441.0,46440.0,0.1927585]
[1641228123026,0.00050463,46441.0,46440.0,2.1167585]
[1641228123628,4.81e-06,46447.0,46446.0,0.00120205]
[1641228123862,4.81e-06,46447.0,46446.0,1.26488205]
[1641228124028,0.70950094,46457.0,46449.0,2.764]
[1641228124231,0.70950094,46457.0,46456.0,0.00125826]
[1641228124457,0.02,46462.0,46461.0,0.00127403]
[1641228124660,0.02,46462.0,46461.0,0.09271103]
[1641228124957,0.02,46462.0,46461.0,1.46007261]
[1641228125557,0.02,46462.0,46461.0,1.51007261]
[1641228125758,0.02,46462.0,46461.0,0.048237]
[1641228125958,0.02,46462.0,46460.0,0.053804]
[1641228126558,0.0161949,46462.0,46460.0,0.053804]
[1641228127159,0.00783311,46470.0,46461.0,2.03181192]
[1641228127160,0.00693849,46470.0,46461.0,2.03181192]
[1641228127361,0.1998,46483.0,46461.0,2.08126585]
[1641228127559,0.1998,46483.0,46471.0,0.0012575]
[1641228127760,1.19467389,46483.0,46471.0,0.0012575]
[1641228127962,1.19467389,46483.0,46471.0,0.1012575]
[1641228128234,1.19467389,46483.0,46482.0,0.00120922]
[1641228128629,0.0022216,46489.0,46483.0,1.62]
[1641228128926,0.0022216,46489.0,46484.0,0.09139]
[1641228129228,0.0022216,46489.0,46487.0,0.20971469]
[1641228129529,0.0022216,46489.0,46479.0,0.107557]
[1641228129530,0.00273183,46489.0,46479.0,0.107557]
[1641228129725,0.00273183,46489.0,46481.0,0.00122946]
[1641228129925,0.00273183,46489.0,46479.0,0.70752141]
[1641228130325,0.00273183,46489.0,46480.0,0.19352399]
[1641228130726,0.00273183,46489.0,46479.0,0.008534]
[1641228131125,0.00273183,46489.0,46483.0,0.00125897]
[1641228131328,0.00151023,46489.0,46484.0,0.04818]
[1641228131728,0.00151023,46489.0,46484.0,0.23707132]
[1641228132165,0.00151023,46489.0,46488.0,0.00126642]
[1641228132361,0.00151023,46489.0,46488.0,1.57943842]
[1641228132560,0.00151023,46489.0,46488.0,0.04943842]
[1641228133060,0.00151023,46489.0,46488.0,0.56943842]
[1641228133263,0.00151023,46489.0,46488.0,0.04943842]
[1641228134063,0.001,46489.0,46488.0,0.83943842]
[1641228134462,0.001,46489.0,46488.0,1.19343842]
[1641228134665,0.001,46489.0,46488.0,0.04943842]
[1641228135732,0.30377316,46499.0,46488.0,0.04943842]
[1641228135925,0.36933696,46499.0,46487.0,0.70752141]
[1641228136124,0.41933696,46499.0,46487.0,0.70752141]
[1641228136526,0.41933696,46499.0,46485.0,0.215088]
[1641228136724,0.05,46499.0,46485.0,0.215088]
[1641228136925,0.04,46499.0,46491.0,0.00126738]
[1641228137127,0.1001,46500.0,46494.0,0.23328943]
[1641228137527,0.00045921,46499.0,46494.0,0.23328943]
[1641228138125,0.00045921,46499.0,46494.0,0.31248351]
[1641228138728,0.00045921,46499.0,46495.0,0.048155]
[1641228139571,0.00045921,46499.0,46496.0,0.053769]
[1641228139772,0.00045921,46499.0,46497.0,0.04815]
[1641228139974,0.15,46498.0,46497.0,0.04815]
[1641228140370,0.15,46498.0,46495.0,0.053769]
[1641228140570,0.00045921,46499.0,46495.0,0.053769]
[1641228140571,0.00045921,46499.0,46496.0,0.048151]
[1641228140972,0.02129069,46499.0,46496.0,0.048151]
[1641228141379,0.02129069,46499.0,46497.0,0.42770477]
[1641228141576,0.05169069,46500.0,46499.0,1.658147]
[1641228141775,0.002,46509.0,46501.0,1.144]
[1641228141972,0.002,46509.0,46500.0,1.61]
[1641228141973,0.002,46509.0,46508.0,0.00124331]
[1641228142172,0.0001,46510.0,46508.0,0.04936631]
[1641228142374,0.0001,46522.0,46509.0,0.28399074]
[1641228142576,0.00028406,46519.0,46512.0,0.053749]
[1641228143426,0.00028406,46519.0,46518.0,0.00124005]
[1641228143627,0.00028406,46519.0,46518.0,1.89366453]
[1641228143826,0.00028406,46519.0,46518.0,0.28366453]
[1641228144026,0.00028406,46519.0,46518.0,0.09254505]
[1641228144226,0.00028406,46519.0,46518.0,0.09149298]
[1641228144528,0.00028406,46519.0,46518.0,0.18585343]
[1641228145527,0.00028406,46519.0,46518.0,0.18714161]
[1641228145725,0.00028406,46519.0,46518.0,0.52714161]
[1641228145926,0.00028406,46519.0,46518.0,0.18714161]
[1641228146632,0.00028406,46519.0,46518.0,0.31714161]
[1641228146829,0.00028406,46519.0,46518.0,0.89714161]
[1641228147076,0.00028406,46519.0,46518.0,0.18714161]
[1641228148975,0.00028406,46519.0,46518.0,0.09278116]
[1641228149175,0.00028406,46519.0,46518.0,0.09148698]
[1641228150180,0.00028406,46519.0,46518.0,0.00018798]
[1641228150375,0.00028406,46519.0,46518.0,0.75229519]
[1641228150825,0.00028406,46519.0,46518.0,0.04828698]
[1641228151627,0.00028406,46519.0,46518.0,0.00018798]
[1641228151827,0.40028014,46519.0,46518.0,0.00018798]
[1641228152027,0.40667903,46519.0,46518.0,0.00018798]
[1641228152228,0.15658295,46519.0,46518.0,0.00018798]
[1641228152628,0.30658295,46519.0,46518.0,0.00018798]
[1641228152834,0.34978295,46519.0,46509.0,0.70400821]
[1641228153034,0.34978295,46519.0,46493.0,1.06096106]
[1641228153035,0.00127521,46504.0,46493.0,1.06096106]
[1641228153330,0.0922781,46502.0,46493.0,1.06096106]
[1641228153630,0.14799832,46497.0,46493.0,1.06096106]
[1641228153833,0.0908071,46500.0,46493.0,1.06096106]
[1641228154029,0.1,46498.0,46493.0,1.06096106]
[1641228154230,0.35112856,46497.0,46486.0,0.053782]
[1641228155175,0.35112856,46497.0,46491.0,0.23570158]
[1641228155578,0.00125556,46497.0,46491.0,0.23570158]
[1641228155977,0.5,46496.0,46491.0,0.23570158]
[1641228156177,0.349873,46495.0,46491.0,0.23570158]
[1641228156379,0.55,46496.0,46490.0,0.08253619]
[1641228156978,0.349873,46495.0,46490.0,0.08253619]
[1641228157580,0.68220274,46495.0,46490.0,0.08253619]
[1641228158322,0.68220274,46495.0,46487.0,0.00019402]
[1641228158521,0.05,46494.0,46487.0,0.00019402]
[1641228158723,0.05,46494.0,46487.0,0.00872702]
[1641228158920,0.3374152,46493.0,46487.0,0.00872702]
[1641228159120,0.05,46494.0,46487.0,0.00872702]
[1641228159322,0.05,46494.0,46492.0,0.09021321]
[1641228159723,0.05,46494.0,46490.0,0.053781]
[1641228160724,0.05,46494.0,46491.0,0.08469663]
[1641228160919,0.035,46494.0,46491.0,0.08469663]
[1641228161321,0.035,46494.0,46492.0,0.70752617]
[1641228161724,0.51142253,46495.0,46493.0,0.22766335]
[1641228161976,0.51142253,46495.0,46494.0,0.091362]
[1641228162274,0.01142253,46495.0,46494.0,0.091362]
[1641228162473,0.01142253,46495.0,46494.0,1.20179832]
[1641228162776,0.0168732,46497.0,46496.0,1.66497328]
[1641228162973,0.0168732,46497.0,46496.0,1.24712528]
[1641228163175,0.53701101,46507.0,46505.0,0.09661673]
[1641228163774,0.53701101,46507.0,46505.0,0.15038073]
[1641228164176,0.53701101,46507.0,46506.0,0.048129]
[1641228164975,0.58701101,46507.0,46505.0,0.15038073]
[1641228165176,0.58701101,46507.0,46506.0,0.048128]
[1641228165376,0.53701101,46507.0,46506.0,0.048128]
[1641228165580,0.53701101,46507.0,46506.0,1.101328]
[1641228165834,0.53701101,46507.0,46506.0,0.091328]
[1641228166036,0.53701101,46507.0,46506.0,0.09150939]
[1641228167132,0.58701101,46507.0,46506.0,0.09150939]
[1641228167531,0.53701101,46507.0,46506.0,0.42150939]
[1641228167932,0.53701101,46507.0,46506.0,0.00018139]
[1641228168333,0.53701101,46507.0,46506.0,0.05018139]
[1641228169032,0.58701101,46507.0,46506.0,0.13740027]
[1641228169679,0.58701101,46507.0,46506.0,0.09830939]
[1641228169879,0.58701101,46507.0,46506.0,0.05018139]
[1641228170080,0.58701101,46507.0,46506.0,0.75018139]
[1641228170081,0.58681101,46507.0,46506.0,0.75018139]
[1641228170281,0.58681101,46507.0,46506.0,0.09830939]
[1641228170481,0.58681101,46507.0,46506.0,0.05018139]
[1641228170880,0.58681101,46507.0,46506.0,0.09830939]
[1641228174017,0.58681101,46507.0,46506.0,0.10684339]
[1641228174419,0.58681101,46507.0,46506.0,0.05871539]
[1641228175517,0.58681101,46507.0,46506.0,0.10684339]
[1641228176326,0.53701101,46507.0,46506.0,0.10684339]
[1641228177567,0.58701101,46507.0,46506.0,0.10684339]
[1641228177767,0.53701101,46507.0,46506.0,0.10684339]
[1641228178167,0.10698201,46507.0,46506.0,0.10684339]
[1641228178768,0.01744106,46509.0,46506.0,0.10684339]
[1641228178970,0.00037986,46509.0,46507.0,0.10750858]
[1641228179169,0.00037986,46509.0,46508.0,0.10188]
[1641228180174,0.00037986,46509.0,46508.0,0.55522213]
[1641228180369,0.00028406,46519.0,46509.0,1.31]
[1641228180568,0.00809051,46519.0,46514.0,0.053749]
[1641228180844,0.0170612,46516.0,46514.0,0.053749]
[1641228181244,0.0170612,46516.0,46515.0,0.5329448]
[1641228181444,0.0170612,46516.0,46515.0,0.0729448]
[1641228183248,0.0170612,46516.0,46515.0,0.1210528]
[1641228185178,0.0170612,46516.0,46515.0,0.0729448]
[1641228185679,0.0170612,46516.0,46515.0,0.0814778]
[1641228185878,0.0120612,46516.0,46515.0,0.0814778]
[1641228187078,0.00038408,46518.0,46516.0,0.053749]
[1641228187277,0.00038408,46518.0,46517.0,0.053749]
[1641228187677,0.00028406,46519.0,46517.0,0.053749]
[1641228192782,0.00147748,46519.0,46517.0,0.053749]
[1641228194181,0.0078659,46523.0,46517.0,0.107498]
[1641228194381,0.0078659,46523.0,46519.0,0.053749]
[1641228195384,0.0078659,46523.0,46520.0,0.161248]
[1641228195582,0.50729778,46523.0,46520.0,0.161248]
[1641228195842,0.50729778,46523.0,46520.0,0.264994]
[1641228196043,0.00561055,46523.0,46520.0,0.214994]
[1641228196346,0.00561055,46523.0,46520.0,0.268741]
[1641228196543,0.0001,46524.0,46521.0,0.053747]
[1641228196744,0.15,46522.0,46521.0,0.053747]
[1641228196943,0.2,46522.0,46521.0,0.053747]
[1641228197142,0.2,46522.0,46520.0,0.214994]
[1641228197347,0.05,46522.0,46520.0,0.214994]
[1641228197542,0.0001,46524.0,46521.0,0.048099]
[1641228197746,0.0001,46528.0,46521.0,0.163742]
[1641228197947,0.1001,46530.0,46522.0,0.214964]
[1641228197948,0.0002,46530.0,46522.0,0.214964]
[1641228198144,0.0002,46530.0,46527.0,0.22122691]
[1641228198371,0.0002,46530.0,46517.0,0.161247]
[1641228198372,0.18638701,46504.0,46499.0,0.05829]
[1641228198552,0.56146197,46493.0,46483.0,0.39043169]
[1641228198745,0.56146197,46493.0,46471.0,0.002]
[1641228198746,1.79462278,46491.0,46471.0,0.002]
[1641228198948,0.5399,46472.0,46471.0,0.002]
[1641228199147,0.5831,46472.0,46471.0,0.050202]
[1641228199347,0.82775045,46472.0,46471.0,0.217161]
[1641228199598,0.6331,46472.0,46471.0,0.002]
[1641228199797,1.42629864,46472.0,46471.0,0.002]
[1641228200000,1.93207495,46472.0,46471.0,0.002]
[1641228200197,1.92617164,46472.0,46471.0,0.002]
[1641228200600,1.97798464,46472.0,46471.0,0.002]
[1641228200800,2.07798464,46472.0,46471.0,0.002]
[1641228201200,2.53798464,46472.0,46471.0,0.002]
[1641228201398,2.07798464,46472.0,46471.0,0.002]
[1641228201598,0.053817,46469.0,46467.0,0.00780723]
[1641228201808,1.61,46471.0,46449.0,0.107638]
[1641228201809,0.8,46467.0,46449.0,0.107638]
[1641228202000,0.69117801,46462.0,46452.0,0.18252696]
[1641228202202,1.13425101,46462.0,46461.0,0.010533]
[1641228202399,2.05504841,46462.0,46461.0,0.010533]
[1641228202799,2.05504841,46462.0,46461.0,0.008633]
[1641228203430,1.234999,46462.0,46461.0,0.008633]
[1641228203627,0.885126,46462.0,46461.0,0.008633]
[1641228203828,1.234999,46462.0,46461.0,0.008633]
[1641228205032,1.191799,46462.0,46461.0,0.008633]
[1641228205236,0.841926,46462.0,46461.0,0.008633]
[1641228206230,0.05,46462.0,46461.0,0.008633]
[1641228206429,0.00126914,46466.0,46461.0,0.008633]
[1641228206731,0.791926,46465.0,46461.0,0.008633]
[1641228207180,0.841926,46465.0,46461.0,0.008633]
[1641228207478,1.141799,46464.0,46461.0,0.008633]
[1641228207880,0.791926,46463.0,46461.0,0.008633]
[1641228208078,0.349873,46462.0,46461.0,0.008633]
[1641228208480,1.141799,46462.0,46461.0,0.008633]
[1641228208886,0.349873,46462.0,46461.0,0.008633]
[1641228209781,0.349873,46462.0,46461.0,0.0091796]
[1641228209981,0.37,46461.0,46457.0,0.00054869]
[1641228210189,0.37,46461.0,46435.0,1.845695]
[1641228210190,0.549873,46457.0,46429.0,0.1]
[1641228210392,0.0012156,46442.0,46435.0,0.107663]
[1641228210586,0.1303856,46442.0,46427.0,0.40688285]
[1641228210845,0.5302586,46442.0,46427.0,0.40688285]
[1641228211040,0.6302586,46442.0,46435.0,0.07814104]
[1641228211238,1.4221846,46442.0,46427.0,0.40688285]
[1641228211443,1.42769548,46442.0,46427.0,0.40688285]
[1641228211938,1.4221846,46442.0,46434.0,0.45770809]
[1641228212340,1.3050546,46442.0,46441.0,0.39844955]
[1641228212540,0.05,46442.0,46441.0,0.39844955]
[1641228212945,0.0538387,46447.0,46441.0,0.001]
[1641228213140,0.00121831,46445.0,46441.0,0.001]
[1641228213340,0.349873,46444.0,46441.0,0.001]
[1641228213641,1.291799,46444.0,46441.0,0.001]
[1641228213840,1.291799,46444.0,46441.0,0.71837216]
[1641228214041,0.791926,46443.0,46441.0,0.71837216]
[1641228214339,0.349873,46442.0,46441.0,0.001]
[1641228214588,0.499873,46442.0,46441.0,0.001]
[1641228215087,0.15,46442.0,46441.0,0.001]
[1641228215886,0.05,46442.0,46441.0,0.001]
[1641228216086,0.0538434,46443.0,46441.0,0.001]
[1641228216289,0.349873,46442.0,46441.0,0.001]
[1641228216488,0.841926,46442.0,46441.0,0.001]
[1641228216688,1.291799,46442.0,46441.0,0.001]
[1641228217087,1.291799,46442.0,46441.0,0.009533]
[1641228217893,1.141799,46442.0,46441.0,0.009533]
[1641228218094,0.791926,46442.0,46441.0,0.009533]
[1641228218536,1.4824984,46442.0,46441.0,0.009533]
[1641228218738,0.3510974,46442.0,46441.0,0.009533]
[1641228218936,1.47104788,46442.0,46441.0,0.009533]
[1641228219137,1.57104788,46442.0,46441.0,0.009533]
[1641228219338,1.61982348,46442.0,46441.0,0.009533]
[1641228219536,1.28931643,46442.0,46441.0,0.009533]
[1641228220036,1.33251643,46442.0,46441.0,0.009533]
[1641228221342,1.33251643,46442.0,46441.0,0.00977346]
[1641228222487,1.28931643,46442.0,46441.0,0.00977346]
[1641228222683,1.89672401,46442.0,46441.0,0.00977346]
[1641228222883,1.28931643,46442.0,46441.0,0.00977346]
[1641228223084,0.791926,46442.0,46441.0,0.00977346]
[1641228223287,0.60740758,46444.0,46441.0,0.00977346]
[1641228223485,0.60740758,46444.0,46443.0,0.28494059]
[1641228223784,0.60740758,46446.0,46443.0,0.28494059]
[1641228224186,0.791926,46445.0,46443.0,0.23494059]
[1641228224382,0.349873,46444.0,46443.0,0.23494059]
[1641228224583,0.791926,46445.0,46442.0,0.053831]
[1641228224782,0.791926,46444.0,46442.0,0.053831]
[1641228224983,0.791926,46444.0,46441.0,0.72714562]
[1641228225184,0.60740758,46450.0,46441.0,0.72714562]
[1641228225384,0.1,46444.0,46441.0,0.72714562]
[1641228225589,0.05,46444.0,46441.0,0.72714562]
[1641228225841,0.05,46444.0,46441.0,0.00977346]
[1641228226036,0.0012686,46447.0,46441.0,0.00977346]
[1641228226239,0.791926,46443.0,46441.0,0.00977346]
[1641228226437,0.05,46443.0,46441.0,0.00977346]
[1641228226637,0.791926,46442.0,46441.0,0.00977346]
[1641228226836,0.841926,46442.0,46441.0,0.00977346]
[1641228227036,0.841926,46442.0,46441.0,0.34741203]
[1641228227037,0.791926,46442.0,46441.0,0.34741203]
[1641228227241,0.60740758,46449.0,46442.0,0.39921091]
[1641228227438,0.60740758,46449.0,46448.0,1.71]
[1641228227639,0.60740758,46449.0,46448.0,1.79998282]
[1641228227840,0.60740758,46450.0,46448.0,1.79998282]
[1641228228137,0.60740758,46450.0,46449.0,0.68435576]
[1641228228342,0.60740758,46450.0,46449.0,0.37159812]
[1641228228539,0.1924305,46460.0,46448.0,0.05129482]
[1641228228740,0.1924305,46460.0,46453.0,0.05382]
[1641228228939,0.339873,46459.0,46453.0,0.05382]
[1641228229138,0.339873,46459.0,46448.0,0.10764]
[1641228229340,0.79983808,46460.0,46451.0,0.71664461]
[1641228229585,0.89983808,46460.0,46451.0,0.71664461]
[1641228229783,0.94983808,46460.0,46451.0,0.71664461]
[1641228230184,0.94203516,46460.0,46451.0,0.71664461]
[1641228230382,0.94203516,46460.0,46448.0,0.82428461]
[1641228230383,0.60740758,46458.0,46448.0,0.82428461]
[1641228230584,0.75740758,46458.0,46448.0,0.82428461]
[1641228231286,0.60740758,46457.0,46448.0,0.71664461]
[1641228231485,0.60711864,46457.0,46448.0,0.71664461]
[1641228231686,0.70711864,46457.0,46448.0,0.71664461]
[1641228231883,0.1,46457.0,46448.0,0.76664461]
[1641228232086,0.85037062,46460.0,46448.0,0.05124094]
[1641228232684,0.85037062,46460.0,46449.0,0.00022995]
[1641228232884,0.00123978,46462.0,46449.0,0.00022995]
[1641228232885,0.1852701,46461.0,46451.0,0.25069029]
[1641228233083,0.00123978,46462.0,46454.0,0.13812618]
[1641228233544,0.00123978,46462.0,46455.0,0.05]